fUSD/lending_fUSD_20240429
["ID","MTS","AMOUNT","RATE_DAILY","PERIOD"]
[324892327,1714401056218,-500.0,0.000126,2]
[324892328,1714401056228,-500.0,0.000126,2]
[324892329,1714401056238,-500.0,0.000126,2]
[324892330,1714401056251,-500.0,0.000126,2]
[324892331,1714401056260,-500.0,0.000126,2]
[324892332,1714401056269,-500.0,0.000126,2]
[324892333,1714401056279,-303.27,0.000126,2]
[324892334,1714401056289,-500.0,0.000126,2]
[324892335,1714401056298,-500.0,0.000126,2]
[324892336,1714401056308,-500.0,0.000126,2]
[324892337,1714401056318,-500.0,0.000126,2]
[324892338,1714401056327,-548.73,0.000126,2]
[324892339,1714401056337,-500.0,0.000126,2]
[324892340,1714401056346,-500.0,0.000126,2]
[324892341,1714401056356,-500.0,0.000126,2]
[324892342,1714401056365,-500.0,0.000126,2]
[324892343,1714401056379,-500.0,0.000126,2]
[324892344,1714401056389,-500.0,0.000126,2]
[324892345,1714401056398,-500.0,0.000126,2]
[324892346,1714401056408,-601.61876924,0.000126,2]
[324892347,1714401056416,-500.0,0.000126,2]
[324892348,1714401056425,-500.0,0.000126,2]
[324892349,1714401056434,-799.25,0.000126,2]
[324892350,1714401056443,-579.96,0.000126,2]
[324892351,1714401056452,-178.805252,0.000126,2]
[324892352,1714401056462,-500.0,0.000126,2]
[324892353,1714401056470,-500.0,0.000126,2]
[324892354,1714401056480,-500.0,0.000126,2]
[324892355,1714401056490,-500.0,0.000126,2]
[324892356,1714401056499,-500.0,0.000126,2]
[324892357,1714401056508,-500.0,0.000126,2]
[324892358,1714401056517,-500.0,0.000126,2]
[324892359,1714401056526,-500.0,0.000126,2]
[324892360,1714401056535,-500.0,0.000126,2]
[324892361,1714401056544,-500.0,0.000126,2]
[324892362,1714401056553,-825.36,0.000126,2]
[324892363,1714401056563,-500.0,0.000126,2]
[324892364,1714401056572,-500.0,0.000126,2]
[324892365,1714401056581,-500.0,0.000126,2]
[324892366,1714401056590,-556.9,0.000126,2]
[324892367,1714401056601,-500.0,0.000126,2]
[324892368,1714401056610,-500.0,0.000126,2]
[324892369,1714401056619,-500.0,0.000126,2]
[324892370,1714401056632,-500.0,0.000126,2]
[324892371,1714401056641,-500.0,0.000126,2]
[324892372,1714401056650,-500.0,0.000126,2]
[324892373,1714401056659,-500.0,0.000126,2]
[324892374,1714401056668,-500.0,0.000126,2]
[324892375,1714401056677,-500.0,0.000126,2]
[324892376,1714401056686,-500.0,0.000126,2]
[324892377,1714401056695,-500.0,0.000126,2]
[324892378,1714401056704,-500.0,0.000126,2]
[324892379,1714401056715,-500.0,0.000126,2]
[324892380,1714401056724,-532.17,0.000126,2]
[324892381,1714401056733,-500.0,0.000126,2]
[324892382,1714401056742,-500.0,0.000126,2]
[324892383,1714401056751,-500.0,0.000126,2]
[324892384,1714401056760,-500.0,0.000126,2]
[324892385,1714401056770,-500.0,0.000126,2]
[324892386,1714401056779,-500.0,0.000126,2]
[324892387,1714401056788,-500.0,0.000126,2]
[324892388,1714401056797,-547.45,0.000126,2]
[324892389,1714401056807,-500.0,0.000126,2]
[324892390,1714401056816,-500.0,0.000126,2]
[324892391,1714401056825,-500.0,0.000126,2]
[324892392,1714401056834,-500.0,0.000126,2]
[324892393,1714401056843,-500.0,0.000126,2]
[324892394,1714401056852,-633.27,0.000126,2]
[324892395,1714401056861,-736.63,0.000126,2]
[324892396,1714401056871,-500.0,0.000126,2]
[324892397,1714401056886,-721.46,0.000126,2]
[324892398,1714401056895,-500.0,0.000126,2]
[324892399,1714401056904,-500.0,0.000126,2]
[324892400,1714401056913,-500.0,0.000126,2]
[324892401,1714401056922,-500.0,0.000126,2]
[324892402,1714401056931,-240.57306296,0.000126,2]
[324892403,1714401056941,-500.0,0.000126,2]
[324892404,1714401056955,-500.0,0.000126,2]
[324892405,1714401056964,-500.0,0.000126,2]
[324892406,1714401056973,-500.0,0.000126,2]
[324892407,1714401056983,-500.0,0.000126,2]
[324892408,1714401056992,-500.0,0.000126,2]
[324892409,1714401057001,-500.0,0.000126,2]
[324892410,1714401057011,-500.0,0.000126,2]
[324892411,1714401057020,-500.0,0.000126,2]
[324892412,1714401057030,-500.0,0.000126,2]
[324892413,1714401057040,-500.0,0.000126,2]
[324892414,1714401057049,-500.0,0.000126,2]
[324892415,1714401057059,-500.0,0.000126,2]
[324892416,1714401057068,-500.0,0.000126,2]
[324892417,1714401057077,-344.19931373,0.000126,2]
[324892418,1714401057087,-500.0,0.000126,2]
[324892419,1714401057097,-953.17,0.000126,2]
[324892420,1714401057107,-500.0,0.000126,2]
[324892421,1714401057117,-1105.34,0.000126,2]
[324892422,1714401057129,-500.0,0.000126,2]
[324892423,1714401057138,-500.0,0.000126,2]
[324892424,1714401057148,-500.0,0.000126,2]
[324892425,1714401057157,-500.0,0.000126,2]
[324892426,1714401057166,-500.0,0.000126,2]
[324892427,1714401057176,-500.0,0.000126,2]
[324892428,1714401057185,-628.56,0.000126,2]
[324892429,1714401057195,-500.0,0.000126,2]
[324892430,1714401057205,-500.0,0.000126,2]
[324892431,1714401057215,-723.81,0.000126,2]
[324892432,1714401057224,-500.0,0.000126,2]
[324892433,1714401057237,-636.63,0.000126,2]
[324892434,1714401057247,-500.0,0.000126,2]
[324892435,1714401057256,-500.0,0.000126,2]
[324892436,1714401057266,-500.0,0.000126,2]
[324892437,1714401057276,-500.0,0.000126,2]
[324892438,1714401057286,-500.0,0.000126,2]
[324892439,1714401057296,-662.52,0.000126,2]
[324892440,1714401057306,-500.0,0.000126,2]
[324892441,1714401057317,-510.78416114,0.000126,2]
[324892442,1714401057328,-1009.44,0.000126,2]
[324892443,1714401057337,-500.0,0.000126,2]
[324892444,1714401057346,-500.0,0.000126,2]
[324892445,1714401057356,-500.0,0.000126,2]
[324892446,1714401057365,-500.0,0.000126,2]
[324892447,1714401057377,-500.0,0.000126,2]
[324892448,1714401057388,-476.0,0.000126,2]
[324892449,1714401057397,-500.0,0.000126,2]
[324892450,1714401057406,-500.0,0.000126,2]
[324892451,1714401057416,-1339.46,0.000126,2]
[324892452,1714401057425,-695.53,0.000126,2]
[324892453,1714401057435,-1009.28,0.000126,2]
[324892454,1714401057444,-500.0,0.000126,2]
[324892455,1714401057454,-500.0,0.000126,2]
[324892456,1714401057463,-628.9388179,0.000126,2]
[324892457,1714401057473,-500.0,0.000126,2]
[324892458,1714401057482,-3757.61,0.000126,2]
[324892459,1714401057492,-500.0,0.000126,2]
[324892460,1714401057501,-1022.74,0.000126,2]
[324892461,1714401057511,-883.01,0.000126,2]
[324892462,1714401057521,-500.0,0.000126,2]
[324892463,1714401057530,-500.0,0.000126,2]
[324892464,1714401057540,-500.0,0.000126,2]
[324892465,1714401057549,-500.0,0.000126,2]
[324892466,1714401057559,-1190.59,0.000126,2]
[324892467,1714401057568,-816.61,0.000126,2]
[324892468,1714401057577,-667.2,0.000126,2]
[324892469,1714401057590,-500.0,0.000126,2]
[324892470,1714401057600,-838.66,0.000126,2]
[324892471,1714401057610,-500.0,0.000126,2]
[324892472,1714401057620,-500.0,0.000126,2]
[324892473,1714401057633,-500.0,0.000126,2]
[324892474,1714401057643,-500.0,0.00012601,2]
[324892475,1714401057653,-500.0,0.00012601,2]
[324892476,1714401057662,-500.0,0.00012601,2]
[324892477,1714401057671,-500.0,0.00012601,2]
[324892478,1714401057681,-500.0,0.00012601,2]
[324892479,1714401057690,-455.40045736,0.00012601,2]
[324892480,1714401057700,-500.0,0.00012601,2]
[324892481,1714401057842,-500.0,0.00012601,2]
[324892482,1714401057853,-500.0,0.00012601,2]
[324892483,1714401057863,-500.0,0.00012601,2]
[324892484,1714401057872,-500.0,0.00012601,2]
[324892485,1714401057883,-500.0,0.00012601,2]
[324892486,1714401057892,-500.0,0.00012601,2]
[324892487,1714401057902,-500.0,0.00012601,2]
[324892488,1714401057911,-500.0,0.00012601,2]
[324892489,1714401057921,-500.0,0.00012601,2]
[324892490,1714401057930,-500.0,0.00012601,2]
[324892491,1714401057941,-593.98,0.00012601,2]
[324892492,1714401057951,-500.0,0.00012601,2]
[324892493,1714401057961,-500.0,0.00012601,2]
[324892494,1714401057970,-500.0,0.00012601,2]
[324892495,1714401057979,-500.0,0.00012601,2]
[324892496,1714401057989,-500.0,0.00012601,2]
[324892497,1714401057998,-500.0,0.00012601,2]
[324892498,1714401058007,-500.0,0.00012601,2]
[324892499,1714401058016,-500.0,0.00012601,2]
[324892500,1714401058026,-150.0,0.00012616,2]
[324892501,1714401058035,-220.51955605,0.00012622,2]
[324892502,1714401058046,-150.0,0.00012625,2]
[324892503,1714401058055,-150.0,0.00012626,2]
[324892504,1714401058064,-150.0,0.00012627,2]
[324892505,1714401058074,-150.0,0.00012634,2]
[324892506,1714401058083,-150.0,0.00012634,2]
[324892507,1714401058094,-341.62616104,0.00012641,2]
[324892508,1714401058104,-3204.29839266,0.00012644,2]
[324892509,1714401058113,-216.35313334,0.00012645,2]
[324892510,1714401058122,-1321.13645575,0.00012645,2]
[324892511,1714401058133,-150.0,0.00012648,2]
[324892512,1714401058142,-1500.0,0.0001266,2]
[324892513,1714401058152,-500.0,0.0001267,2]
[324892514,1714401058163,-634.79316228,0.0001267,2]
[324892515,1714401058172,-199595.52641729,0.00012672,2]
[324892516,1714401058182,-979.22,0.00012673,2]
[324892517,1714401058192,-150.0,0.00012682,2]
[324892518,1714401058202,-3736.11622909,0.00012687,2]
[324892519,1714401058212,-187.0,0.0001269,2]
[324892520,1714401058222,-364.97134304,0.00012698,2]
[324892521,1714401058233,-523.79187868,0.00012698,2]
[324892522,1714401058245,-510.6964741,0.00012698,2]
[324892523,1714401058254,-261.85017646,0.00012698,2]
[324892524,1714401058263,-522.51870535,0.00012698,2]
[324892525,1714401058272,-409.15313021,0.00012698,2]
[324892526,1714401058283,-1244.54920757,0.00012698,2]
[324892527,1714401058292,-3075.58206305,0.00012698,2]
[324892528,1714401058301,-872.23711713,0.00012698,2]
[324892529,1714401058311,-342.22232771,0.00012698,2]
[324892530,1714401058323,-3022.4598113,0.00012698,2]
[324892531,1714401058333,-268.35852299,0.00012698,2]
[324892532,1714401058341,-2304.03954008,0.00012698,2]
[324892533,1714401058351,-1451.4,0.00012699,2]
[324892534,1714401058361,-1451.4,0.00012699,2]
[324892535,1714401058370,-1451.4,0.00012699,2]
[324892536,1714401058382,-1451.4,0.00012699,2]
[324892537,1714401058391,-1451.4,0.00012699,2]
[324892538,1714401058400,-150.0,0.00012699,2]
[324892539,1714401058409,-500.0,0.00012699,2]
[324892540,1714401058418,-500.0,0.00012699,2]
[324892541,1714401058427,-1500.0,0.0001271,2]
[324892542,1714401058436,-157.05263004,0.00012724,2]
[324892543,1714401058446,-150.0,0.00012726,2]
[324892544,1714401058455,-341.62616104,0.00012727,2]
[324892545,1714401058473,-150.0,0.00012728,2]
[324892546,1714401058487,-150.0,0.00012728,2]
[324892547,1714401058496,-537.6733542,0.00012731,2]
[324892548,1714401058507,-150.0,0.00012737,2]
[324892549,1714401058517,-150.0,0.00012739,2]
[324892550,1714401058527,-150.0,0.00012742,2]
[324892551,1714401058536,-1500.0,0.00012743,2]
[324892552,1714401058547,-1451.4,0.00012747,2]
[324892553,1714401058556,-150.0,0.00012749,2]
[324892554,1714401058566,-150.0,0.00012749,2]
[324892555,1714401058576,-10020.55613278,0.00012759,2]
[324892556,1714401058588,-200.00824992,0.0001276,2]
[324892557,1714401058597,-195.97981434,0.00012762,2]
[324892558,1714401058608,-216.35313334,0.00012773,2]
[324892559,1714401058617,-150.0,0.00012775,2]
[324892560,1714401058628,-150.0,0.0001278,2]
[324892561,1714401058638,-1000.0,0.00012784,2]
[324892562,1714401058648,-500.0,0.00012784,2]
[324892563,1714401058657,-1000.0,0.00012785,2]
[324892564,1714401058667,-1000.0,0.00012785,2]
[324892565,1714401058677,-500.0,0.00012785,2]
[324892566,1714401058687,-500.0,0.00012785,2]
[324892567,1714401058697,-521.44,0.00012789,2]
[324892568,1714401058707,-500.0,0.00012789,2]
[324892569,1714401058717,-53298.7396,0.0001279,2]
[324892570,1714401058727,-352.42102639,0.000128,2]
[324892571,1714401058737,-341.62616104,0.00012814,2]
[324892572,1714401058747,-352.42102634,0.00012817,2]
[324892573,1714401058758,-150.0,0.00012829,2]
[324892574,1714401058767,-352.42102634,0.00012833,2]
[324892575,1714401058777,-150.0,0.00012837,2]
[324892576,1714401058787,-352.42102634,0.0001285,2]
[324892577,1714401058797,-160.6539788,0.0001285,2]
[324892578,1714401058807,-302.35022494,0.00012853,2]
[324892579,1714401058817,-352.42102634,0.00012867,2]
[324892580,1714401058827,-500.0,0.0001287,2]
[324892581,1714401058836,-500.0,0.0001287,2]
[324892582,1714401058846,-500.0,0.0001287,2]
[324892583,1714401058857,-500.0,0.0001287,2]
[324892584,1714401058867,-979.22,0.0001287,2]
[324892585,1714401058879,-500.0,0.00012871,2]
[324892586,1714401058889,-757.47,0.00012871,2]
[324892587,1714401058898,-500.0,0.00012871,2]
[324892588,1714401058908,-678.44,0.00012871,2]
[324892589,1714401058918,-500.0,0.00012871,2]
[324892590,1714401058928,-1605.35,0.00012871,2]
[324892591,1714401058939,-500.0,0.00012871,2]
[324892592,1714401058948,-500.0,0.00012871,2]
[324892593,1714401058958,-616.33,0.00012871,2]
[324892594,1714401058967,-500.0,0.00012871,2]
[324892595,1714401058976,-500.0,0.00012871,2]
[324892596,1714401058987,-1023.8,0.00012871,2]
[324892597,1714401058997,-547.06,0.00012871,2]
[324892598,1714401059007,-500.0,0.00012871,2]
[324892599,1714401059017,-500.0,0.00012871,2]
[324892600,1714401059028,-687.23,0.00012871,2]
[324892601,1714401059038,-500.0,0.00012871,2]
[324892602,1714401059047,-500.0,0.00012871,2]
[324892603,1714401059057,-811.37,0.00012871,2]
[324892604,1714401059068,-500.0,0.00012871,2]
[324892605,1714401059078,-852.5,0.00012871,2]
[324892606,1714401059087,-703.11,0.00012871,2]
[324892607,1714401059097,-500.0,0.00012871,2]
[324892608,1714401059106,-500.0,0.00012871,2]
[324892609,1714401059116,-931.9,0.00012871,2]
[324892610,1714401059129,-682.92,0.00012871,2]
[324892611,1714401059138,-1452.72,0.00012871,2]
[324892612,1714401059148,-557.62,0.00012871,2]
[324892613,1714401059157,-500.0,0.00012871,2]
[324892614,1714401059167,-716.98,0.00012871,2]
[324892615,1714401059176,-1089.44,0.00012871,2]
[324892616,1714401059186,-505.36951407,0.00012871,2]
[324892617,1714401059195,-576.45,0.00012871,2]
[324892618,1714401059205,-1672.92,0.00012871,2]
[324892619,1714401059215,-368.4,0.00012871,2]
[324892620,1714401059224,-500.0,0.00012871,2]
[324892621,1714401059237,-701.47,0.00012871,2]
[324892622,1714401059247,-603.87,0.00012871,2]
[324892623,1714401059257,-500.0,0.00012871,2]
[324892624,1714401059267,-500.0,0.00012871,2]
[324892625,1714401059278,-992.76,0.00012871,2]
[324892626,1714401059288,-500.0,0.00012871,2]
[324892627,1714401059297,-1139.0,0.00012871,2]
[324892628,1714401059307,-1580.94,0.00012871,2]
[324892629,1714401059318,-1560.0,0.00012871,2]
[324892630,1714401059328,-858.34,0.00012871,2]
[324892631,1714401059338,-769.26,0.00012871,2]
[324892632,1714401059347,-500.0,0.00012871,2]
[324892633,1714401059357,-773.16,0.00012871,2]
[324892634,1714401059367,-1185.68,0.00012871,2]
[324892635,1714401059378,-1157.19,0.00012871,2]
[324892636,1714401059388,-612.21,0.00012871,2]
[324892637,1714401059397,-500.0,0.00012871,2]
[324892638,1714401059406,-500.0,0.00012871,2]
[324892639,1714401059416,-500.0,0.00012871,2]
[324892640,1714401059425,-500.0,0.00012871,2]
[324892641,1714401059434,-500.0,0.00012871,2]
[324892642,1714401059443,-711.1,0.00012871,2]
[324892643,1714401059453,-500.0,0.00012871,2]
[324892644,1714401059462,-500.0,0.00012871,2]
[324892645,1714401059472,-7448.19,0.00012871,2]
[324892646,1714401059482,-500.0,0.00012871,2]
[324892647,1714401059491,-1047.68,0.00012871,2]
[324892648,1714401059501,-3321.93,0.00012871,2]
[324892649,1714401059510,-500.0,0.00012871,2]
[324892650,1714401059520,-5772.06,0.00012871,2]
[324892651,1714401059529,-903.87,0.00012871,2]
[324892652,1714401059539,-522.75,0.00012872,2]
[324892653,1714401059548,-500.0,0.00012872,2]
[324892654,1714401059557,-500.0,0.00012872,2]
[324892655,1714401059567,-500.0,0.00012872,2]
[324892656,1714401059576,-511.45,0.00012872,2]
[324892657,1714401059586,-619.11,0.00012872,2]
[324892658,1714401059595,-500.0,0.00012872,2]
[324892659,1714401059604,-560.93,0.00012872,2]
[324892660,1714401059614,-500.0,0.00012872,2]
[324892661,1714401059623,-500.0,0.00012872,2]
[324892662,1714401059635,-440.46,0.00012872,2]
[324892663,1714401059644,-500.0,0.00012872,2]
[324892664,1714401059654,-500.0,0.00012872,2]
[324892665,1714401059663,-500.0,0.00012872,2]
[324892666,1714401059672,-419.7,0.00012872,2]
[324892667,1714401059682,-500.0,0.00012872,2]
[324892668,1714401059691,-500.0,0.00012872,2]
[324892669,1714401059700,-500.0,0.00012872,2]
[324892670,1714401059710,-924.16,0.00012872,2]
[324892671,1714401059719,-500.0,0.00012872,2]
[324892672,1714401059728,-500.0,0.00012872,2]
[324892673,1714401059737,-566.99806039,0.00012872,2]
[324892674,1714401059746,-500.0,0.00012872,2]
[324892675,1714401059755,-500.0,0.00012872,2]
[324892676,1714401059765,-500.0,0.00012872,2]
[324892677,1714401059774,-981.95,0.00012872,2]
[324892678,1714401059783,-500.0,0.00012872,2]
[324892679,1714401059792,-500.0,0.00012872,2]
[324892680,1714401059801,-262.11,0.00012872,2]
[324892681,1714401059810,-500.0,0.00012872,2]
[324892682,1714401059820,-500.0,0.00012872,2]
[324892683,1714401059829,-500.0,0.00012872,2]
[324892684,1714401059838,-500.0,0.00012872,2]
[324892685,1714401059848,-500.0,0.00012872,2]
[324892686,1714401059857,-500.0,0.00012872,2]
[324892687,1714401059867,-500.0,0.00012872,2]
[324892688,1714401059878,-500.0,0.00012872,2]
[324892689,1714401059888,-781.92,0.00012872,2]
[324892690,1714401059897,-500.0,0.00012872,2]
[324892691,1714401059906,-500.0,0.00012872,2]
[324892692,1714401059915,-500.0,0.00012872,2]
[324892693,1714401059924,-926.48,0.00012872,2]
[324892694,1714401059934,-500.0,0.00012872,2]
[324892695,1714401059943,-792.53,0.00012872,2]
[324892696,1714401059952,-500.0,0.00012872,2]
[324892697,1714401059961,-500.0,0.00012872,2]
[324892698,1714401059971,-500.0,0.00012872,2]
[324892699,1714401059980,-500.0,0.00012872,2]
[324892700,1714401059989,-500.0,0.00012872,2]
[324892701,1714401059999,-500.0,0.00012872,2]
[324892702,1714401060008,-1079.77,0.00012872,2]
[324892703,1714401060159,-500.0,0.00012872,2]
[324892704,1714401060168,-500.0,0.00012872,2]
[324892705,1714401060178,-500.0,0.00012872,2]
[324892706,1714401060187,-859.98,0.00012872,2]
[324892707,1714401060196,-500.0,0.00012872,2]
[324892708,1714401060206,-500.0,0.00012872,2]
[324892709,1714401060215,-528.56170593,0.00012872,2]
[324892710,1714401060224,-500.0,0.00012872,2]
[324892711,1714401060234,-500.0,0.00012872,2]
[324892712,1714401060246,-500.0,0.00012872,2]
[324892713,1714401060257,-500.0,0.00012872,2]
[324892714,1714401060266,-500.0,0.00012872,2]
[324892715,1714401060275,-500.0,0.00012872,2]
[324892716,1714401060285,-500.0,0.00012872,2]
[324892717,1714401060294,-500.0,0.00012872,2]
[324892718,1714401060304,-500.0,0.00012872,2]
[324892719,1714401060314,-500.0,0.00012872,2]
[324892720,1714401060326,-500.0,0.00012872,2]
[324892721,1714401060336,-4793.97,0.00012872,2]
[324892722,1714401060346,-500.0,0.00012872,2]
[324892723,1714401060355,-500.0,0.00012872,2]
[324892724,1714401060365,-500.0,0.00012872,2]
[324892725,1714401060375,-500.0,0.00012872,2]
[324892726,1714401060386,-1123.72,0.00012872,2]
[324892727,1714401060395,-500.0,0.00012872,2]
[324892728,1714401060405,-500.0,0.00012872,2]
[324892729,1714401060414,-500.0,0.00012872,2]
[324892730,1714401060423,-500.0,0.00012872,2]
[324892731,1714401060432,-500.0,0.00012872,2]
[324892732,1714401060442,-1128.56,0.00012872,2]
[324892733,1714401060451,-500.0,0.00012872,2]
[324892734,1714401060461,-500.0,0.00012872,2]
[324892735,1714401060471,-500.0,0.00012872,2]
[324892736,1714401060480,-500.33,0.00012872,2]
[324892737,1714401060490,-500.0,0.00012872,2]
[324892738,1714401060500,-783.94,0.00012872,2]
[324892739,1714401060510,-500.0,0.00012872,2]
[324892740,1714401060519,-500.0,0.00012872,2]
[324892741,1714401060529,-1805.37,0.00012872,2]
[324892742,1714401060538,-500.0,0.00012872,2]
[324892743,1714401060548,-500.0,0.00012872,2]
[324892744,1714401060557,-1740.61,0.00012872,2]
[324892745,1714401060566,-500.0,0.00012872,2]
[324892746,1714401060575,-500.0,0.00012872,2]
[324892747,1714401060585,-500.0,0.00012872,2]
[324892748,1714401060594,-500.0,0.00012872,2]
[324892749,1714401060603,-500.0,0.00012872,2]
[324892750,1714401060613,-500.0,0.00012872,2]
[324892751,1714401060622,-500.0,0.00012872,2]
[324892752,1714401060634,-500.0,0.00012872,2]
[324892753,1714401060643,-500.0,0.00012872,2]
[324892754,1714401060652,-500.0,0.00012873,2]
[324892755,1714401060662,-500.0,0.00012873,2]
[324892756,1714401060671,-426.83,0.00012873,2]
[324892757,1714401060680,-500.0,0.00012873,2]
[324892758,1714401060690,-500.0,0.00012873,2]
[324892759,1714401060700,-500.0,0.00012873,2]
[324892760,1714401060727,-500.0,0.00012873,2]
[324892761,1714401060736,-500.0,0.00012873,2]
[324892762,1714401060745,-581.26,0.00012873,2]
[324892763,1714401060755,-500.0,0.00012873,2]
[324892764,1714401060764,-241.0,0.00012873,2]
[324892765,1714401060772,-500.0,0.00012873,2]
[324892766,1714401060781,-500.0,0.00012873,2]
[324892767,1714401060791,-795.74,0.00012873,2]
[324892768,1714401060800,-500.0,0.00012873,2]
[324892769,1714401060809,-500.0,0.00012873,2]
[324892770,1714401060819,-721.6,0.00012873,2]
[324892771,1714401060828,-500.0,0.00012874,2]
[324892772,1714401060837,-500.0,0.00012874,2]
[324892773,1714401060846,-500.0,0.00012874,2]
[324892774,1714401060856,-275.52,0.00012874,2]
[324892775,1714401060866,-500.0,0.00012874,2]
[324892776,1714401060875,-504.98343928,0.00012874,2]
[324892777,1714401060888,-500.0,0.00012874,2]
[324892778,1714401060897,-500.0,0.00012874,2]
[324892779,1714401060906,-500.0,0.00012874,2]
[324892780,1714401060916,-500.0,0.00012874,2]
[324892781,1714401060925,-500.0,0.00012874,2]
[324892782,1714401060935,-500.0,0.00012874,2]
[324892783,1714401060943,-500.0,0.00012874,2]
[324892784,1714401060953,-500.0,0.00012874,2]
[324892785,1714401060962,-500.0,0.00012874,2]
[324892786,1714401060972,-500.0,0.00012874,2]
[324892787,1714401060981,-563.02,0.00012874,2]
[324892788,1714401060991,-500.0,0.00012874,2]
[324892789,1714401061000,-500.0,0.00012874,2]
[324892790,1714401061011,-500.0,0.00012874,2]
[324892791,1714401061020,-500.0,0.00012874,2]
[324892792,1714401061030,-500.0,0.00012874,2]
[324892793,1714401061040,-558.62631119,0.00012874,2]
[324892794,1714401061049,-500.0,0.00012874,2]
[324892795,1714401061058,-500.0,0.00012874,2]
[324892796,1714401061068,-214.66086343,0.00012874,2]
[324892797,1714401061077,-500.0,0.00012874,2]
[324892798,1714401061087,-500.0,0.00012874,2]
[324892799,1714401061096,-500.0,0.00012874,2]
[324892800,1714401061106,-500.0,0.00012874,2]
[324892801,1714401061115,-548.73,0.00012874,2]
[324892802,1714401061124,-500.0,0.00012874,2]
[324892803,1714401061142,-500.0,0.00012874,2]
[324892804,1714401061151,-500.0,0.00012874,2]
[324892805,1714401061160,-500.0,0.00012874,2]
[324892806,1714401061170,-500.0,0.00012874,2]
[324892807,1714401061179,-500.0,0.00012874,2]
[324892808,1714401061188,-799.25,0.00012874,2]
[324892809,1714401061197,-579.96,0.00012874,2]
[324892810,1714401061208,-500.0,0.00012874,2]
[324892811,1714401061217,-500.0,0.00012874,2]
[324892812,1714401061226,-500.0,0.00012874,2]
[324892813,1714401061237,-500.0,0.00012874,2]
[324892814,1714401061251,-500.0,0.00012874,2]
[324892815,1714401061260,-500.0,0.00012874,2]
[324892816,1714401061270,-500.0,0.00012874,2]
[324892817,1714401061281,-825.36,0.00012874,2]
[324892818,1714401061291,-243.49229047,0.00012874,2]
[324892819,1714401061300,-500.0,0.00012874,2]
[324892820,1714401061310,-500.0,0.00012874,2]
[324892821,1714401061321,-556.9,0.00012874,2]
[324892822,1714401061330,-500.0,0.00012874,2]
[324892823,1714401061340,-500.0,0.00012874,2]
[324892824,1714401061349,-500.0,0.00012874,2]
[324892825,1714401061359,-500.0,0.00012874,2]
[324892826,1714401061368,-500.0,0.00012874,2]